[Event "World Junior U20 Girls 2018"]
[Site "Gebze"]
[Date "2018.09.10"]
[Round "6"]
[White "Chu, Ruotong"]
[Black "Gorti, Akshita"]
[Result "0-1"]
[ECO "E32"]
[WhiteElo "2199"]
[BlackElo "2315"]
[Annotator "NA"]
[PlyCount "60"]
[EventDate "2018.09.05"]
[EventType "swiss"]
[EventCountry "TUR"]
[SourceTitle "playchess.com"]
[Source "ChessBase"]
[SourceQuality "1"]
[TimeControl "40/5400+30:1800+30"]

1. d4 {[%emt 0:04:30]} e6 {[%emt 0:00:30]} 2. c4 {[%emt 0:00:30]} Nf6 {[%emt 0:00:00]} 3. Nc3 {[%emt 0:01:30]} Bb4 {[%emt 0:00:00]} 4. Qc2 {[%emt 0:04:30]} b6 {[%emt 0:01:30]} 5. e4 {[%emt 0:00:00]} c5 {[%emt 0:00:30]} 6. e5 {[%emt 0:17:00] E32: Nimzo-Indian: Classical (4 Qc2): 4...0-0} (6. d5 exd5 7. exd5 Qe7+ 8. Nge2 O-O 9. Bd2 d6 10. O-O-O Ng4 11. Be1 Nd7 12. Ng3 Ndf6 13. h3 Ne5 {1-0 (35) Zhou,J (2597)-Wei,Y (2743) Shenzhen 2017}) 6... cxd4 {[%emt 0:00:30]} 7. a3 {[%emt 0:00:00]} Bxc3+ {[%emt 0:01:30]} 8. bxc3 {[%emt 0:01:00]} Ng8 {[%emt 0:00:30]} 9. cxd4 {[%emt 0:06:30] LiveBook: 19 Games} Bb7 {[%emt 0:00:30]} 10. Nf3 {[%emt 0:06:30]} Bxf3 {[%emt 0:04:30]} 11. gxf3 {[%emt 0:00:30]} Nc6 {[%emt 0:02:30]} 12. Bb2 {[%emt 0:01:30]} Nge7 {[%emt 0:06:30]} 13. f4 $146 {[%emt 0:04:30]} ({Predecessor:} 13. Bd3 Rc8 {½-½ (27) Torma,R (2499)-Kozak,A (2361) Budapest 2017}) 13... Rc8 {[%emt 0:03:30]} 14. Rg1 {[%emt 0:19:30]} Ng6 {[%emt 0:08:30]} 15. f5 {[%emt 0:12:56]} Nh4 {[%emt 0:04:30]} 16. Qd3 $17 {[%emt 0:05:31]} Nxf5 {[%emt 0:02:30]} 17. Bh3 {[%emt 0:00:36]} Nce7 {[%emt 0:21:30]} 18. d5 {[%emt 0:00:16]} O-O {[%emt 0:01:30]} 19. a4 {[%emt 0:06:34]} Ng6 {[%emt 0:04:30]} 20. Qc3 {[%emt 0:02:09]} Re8 {[%emt 0:06:30]} 21. Kf1 {[%emt 0:01:15]} Qh4 {[%emt 0:11:02]} 22. Bxf5 {[%emt 0:00:23]} Rxc4 {[%emt 0:03:27]} 23. Qh3 {[%emt 0:02:04]} exf5 {[%emt 0:00:19]} 24. Qxh4 {[%emt 0:00:38]} Rxh4 {[%emt 0:00:13]} 25. a5 {[%emt 0:00:27]} Rb4 {[%emt 0:01:46]} 26. Bc3 {[%emt 0:01:18]} Rb3 {[%emt 0:00:31]} 27. Rg3 {[%emt 0:00:23]} f4 {[%emt 0:00:30]} 28. Rh3 {[%emt 0:00:46]} Rc8 {[%emt 0:01:17]} 29. axb6 {[%emt 0:00:45]} axb6 {[%emt 0:00:05]} 30. d6 {[%emt 0:00:27]} Rbxc3 {[%emt 0:00:34]} 0-1

[Event "World Junior U20 Girls 2018"]
[Site "Gebze"]
[Date "2018.09.10"]
[Round "6"]
[White "Schneider, Jana"]
[Black "Potapova, Margarita"]
[Result "0-1"]
[ECO "B51"]
[WhiteElo "2190"]
[BlackElo "2277"]
[Annotator "ChessBase"]
[PlyCount "136"]
[EventDate "2018.09.05"]
[EventType "swiss"]
[EventCountry "TUR"]
[SourceTitle "playchess.com"]
[Source "ChessBase"]
[SourceQuality "1"]
[TimeControl "40/5400+30:1800+30"]

1. e4 {[%emt 0:00:30]} c5 {[%emt 0:00:30]} 2. Nf3 {[%emt 0:00:00]} d6 {[%emt 0:00:30]} 3. Bb5+ {[%emt 0:00:00]} Nd7 {[%emt 0:00:30]} 4. O-O {[%emt 0:00:30]} Ngf6 {[%emt 0:00:30]} 5. Re1 {[%emt 0:00:00]} a6 {[%emt 0:00:30]} 6. Bd3 {[%emt 0:00:00]} b5 {[%emt 0:00:30]} 7. c4 {[%emt 0:00:30]} g5 {[%emt 0:00:30]} 8. Nxg5 {[%emt 0:00:00]} Ne5 {[%emt 0:00:30]} 9. Bf1 {[%emt 0:00:00]} bxc4 {[%emt 0:00:30]} 10. d4 {[%emt 0:00:30]} cxd3 {[%emt 0:00:30]} 11. f4 {[%emt 0:00:30]} Bg4 {[%emt 0:06:30]} 12. Qd2 {[%emt 0:00:30]} Nc6 {[%emt 0:08:30]} 13. Qxd3 {[%emt 0:01:30]} h6 {[%emt 0:05:30]} 14. Nf3 {[%emt 0:00:30]} Nb4 {[%emt 0:07:30]} 15. Qd1 {[%emt 0:03:30]} Bxf3 {[%emt 0:06:30]} 16. gxf3 {[%emt 0:00:30]} Bg7 {[%emt 0:17:30]} 17. Nc3 {[%emt 0:01:30]} O-O {[%emt 0:02:30]} 18. Be3 {[%emt 0:06:30]} Nc6 {[%emt 0:04:30]} 19. Kh1 {[%emt 0:04:30]} Nd7 {[%emt 0:04:30]} 20. Bd3 {[%emt 0:07:30]} e6 {[%emt 0:02:30]} 21. Rg1 {[%emt 0:02:30]} Kh8 {[%emt 0:02:30]} 22. Qd2 {[%emt 0:03:30]} Nd4 {[%emt 0:02:30]} 23. Rg3 {[%emt 0:01:30]} Rg8 {[%emt 0:04:30]} 24. f5 {[%emt 0:10:30]} Qh4 {[%emt 0:05:50]} 25. Bf1 {[%emt 0:06:30]} Qf6 {[%emt 0:03:27]} 26. Rh3 {[%emt 0:03:30]} Kh7 {[%emt 0:01:38]} 27. Bd3 {[%emt 0:09:30]} Ne5 {[%emt 0:02:16]} 28. Rf1 {[%emt 0:11:30]} Bf8 {[%emt 0:00:41]} 29. b3 {[%emt 0:05:30]} a5 {[%emt 0:03:45]} 30. Bb1 {[%emt 0:00:30]} Ndc6 {[%emt 0:03:16]} 31. Ne2 {[%emt 0:06:37]} a4 {[%emt 0:00:53]} 32. Ng3 {[%emt 0:01:21]} axb3 {[%emt 0:00:23]} 33. axb3 {[%emt 0:00:30]} Ra1 {[%emt 0:01:19]} 34. Nh5 {[%emt 0:06:06]} Qd8 {[%emt 0:00:04]} 35. f6 {[%emt 0:01:20]} Rg6 {[%emt 0:01:37]} 36. f4 {[%emt 0:00:41]} Ng4 {[%emt 0:00:24]} 37. Qe2 {[%emt 0:06:50]} Qa8 {[%emt 0:00:49]} 38. Qf3 {[%emt 0:00:44]} Nxe3 {[%emt 0:01:08]} 39. Qxe3 {[%emt 0:00:30]} Nd4 {[%emt 0:00:00]} 40. Rg3 {[%emt 0:00:00]} Nf5 {[%emt 0:00:00]} 41. Qf3 {[%emt 0:04:51]} Nxg3+ {[%emt 0:02:30]} 42. hxg3 {[%emt 0:06:30]} Kh8 {[%emt 0:02:30]} 43. g4 {[%emt 0:05:24]} Qb7 {[%emt 0:08:30]} 44. Kh2 {[%emt 0:02:57]} c4 {[%emt 0:00:50]} 45. Qc3 {[%emt 0:02:57]} Ra3 {[%emt 0:02:00]} 46. Qxc4 {[%emt 0:00:27]} Rxb3 {[%emt 0:01:03]} 47. Bc2 {[%emt 0:01:05]} Rb2 {[%emt 0:00:36]} 48. Kh3 {[%emt 0:03:34]} Rg8 {[%emt 0:02:58]} 49. Ng3 {[%emt 0:06:21]} Qb5 {[%emt 0:04:06]} 50. Qxb5 {[%emt 0:01:00]} Rxb5 {[%emt 0:00:02]} 51. Ba4 {[%emt 0:00:00]} Rb7 {[%emt 0:00:57]} 52. Be8 {[%emt 0:01:01]} Kh7 {[%emt 0:00:54]} 53. Nh5 {[%emt 0:00:38]} d5 {[%emt 0:00:43]} 54. exd5 {[%emt 0:00:52]} exd5 {[%emt 0:00:03]} 55. Rd1 {[%emt 0:00:23]} Rb3+ {[%emt 0:00:18]} 56. Ng3 {[%emt 0:00:33]} Bd6 {[%emt 0:01:16]} 57. Bxf7 {[%emt 0:00:14]} Bxf4 {[%emt 0:01:53]} 58. Bxg8+ {[%emt 0:00:30]} Kxg8 {[%emt 0:00:30]} 59. Rg1 {[%emt 0:00:00]} Kf7 {[%emt 0:00:00]} 60. Kh4 {[%emt 0:00:17]} Bxg3+ {[%emt 0:00:36]} 61. Rxg3 {[%emt 0:00:30]} Rxg3 {[%emt 0:00:30]} 62. Kxg3 {[%emt 0:00:00]} Kxf6 {[%emt 0:00:00]} 63. Kf4 {[%emt 0:00:00]} Ke6 {[%emt 0:00:15]} 64. Kf3 {[%emt 0:00:20]} Ke5 {[%emt 0:00:44]} 65. Ke3 {[%emt 0:00:30]} d4+ {[%emt 0:00:00]} 66. Kf3 {[%emt 0:00:19]} Kd5 {[%emt 0:00:00]} 67. Kf4 {[%emt 0:00:29]} Kc4 {[%emt 0:01:13]} 68. Kf5 {[%emt 0:00:46]} d3 {[%emt 0:00:30]} 0-1

[Event "World Junior U20 Girls 2018"]
[Site "Gebze"]
[Date "2018.09.10"]
[Round "6"]
[White "Pychova, Nela"]
[Black "Hu, Yu A"]
[Result "1-0"]
[ECO "C00"]
[WhiteElo "2173"]
[BlackElo "2009"]
[Annotator "ChessBase"]
[PlyCount "125"]
[EventDate "2018.09.05"]
[EventType "swiss"]
[EventCountry "TUR"]
[SourceTitle "playchess.com"]
[Source "ChessBase"]
[SourceQuality "1"]
[TimeControl "40/5400+30:1800+30"]

1. Nf3 {[%emt 0:00:30]} Nf6 {[%emt 0:01:30]} 2. g3 {[%emt 0:00:30]} e6 {[%emt 0:00:30]} 3. Bg2 {[%emt 0:00:00]} d5 {[%emt 0:00:00]} 4. O-O {[%emt 0:00:00]} Be7 {[%emt 0:03:00]} 5. d3 {[%emt 0:00:30]} O-O {[%emt 0:02:30]} 6. Nbd2 {[%emt 0:00:30]} c5 {[%emt 0:00:00]} 7. e4 {[%emt 0:02:30]} Nc6 {[%emt 0:00:00]} 8. Re1 {[%emt 0:01:30]} b5 {[%emt 0:01:30]} 9. e5 {[%emt 0:08:30]} Nd7 {[%emt 0:00:30]} 10. Nf1 {[%emt 0:00:00]} Bb7 {[%emt 0:00:30]} 11. h4 {[%emt 0:03:00]} a5 {[%emt 0:05:30]} 12. N1h2 {[%emt 0:16:30]} b4 {[%emt 0:08:30]} 13. Qd2 {[%emt 0:04:30]} Qc7 {[%emt 0:15:30]} 14. Qf4 {[%emt 0:06:30]} a4 {[%emt 0:03:30]} 15. h5 {[%emt 0:12:30]} Ba6 {[%emt 0:12:30]} 16. Bf1 {[%emt 0:01:30]} Bb7 {[%emt 0:19:30]} 17. Ng4 {[%emt 0:11:30]} Rae8 {[%emt 0:05:45]} 18. c3 {[%emt 0:05:30]} f6 {[%emt 0:02:19]} 19. exf6 {[%emt 0:03:30]} Qxf4 {[%emt 0:00:19]} 20. Bxf4 {[%emt 0:00:30]} Nxf6 {[%emt 0:00:23]} 21. Nxf6+ {[%emt 0:02:28]} Bxf6 {[%emt 0:00:46]} 22. Ne5 {[%emt 0:02:05]} Nxe5 {[%emt 0:02:55]} 23. Bxe5 {[%emt 0:00:08]} Bxe5 {[%emt 0:00:51]} 24. Rxe5 {[%emt 0:00:02]} Rf5 {[%emt 0:00:00]} 25. Rxf5 {[%emt 0:05:11]} exf5 {[%emt 0:00:00]} 26. d4 {[%emt 0:06:14]} Rc8 {[%emt 0:07:48]} 27. cxb4 {[%emt 0:03:34]} cxb4 {[%emt 0:00:30]} 28. Bd3 {[%emt 0:00:00]} g6 {[%emt 0:00:00]} 29. hxg6 {[%emt 0:00:07]} hxg6 {[%emt 0:00:00]} 30. Kg2 {[%emt 0:00:13]} Kg7 {[%emt 0:00:39]} 31. Re1 {[%emt 0:01:41]} Kf6 {[%emt 0:00:05]} 32. Kf1 {[%emt 0:01:52]} a3 {[%emt 0:01:08]} 33. bxa3 {[%emt 0:01:14]} Rc3 {[%emt 0:00:09]} 34. Bb5 {[%emt 0:00:40]} bxa3 {[%emt 0:00:54]} 35. Re3 {[%emt 0:01:09]} Rxe3 {[%emt 0:00:42]} 36. fxe3 {[%emt 0:00:01]} Kg5 {[%emt 0:00:00]} 37. Be2 {[%emt 0:00:18]} Bc6 {[%emt 0:00:16]} 38. Ke1 {[%emt 0:01:14]} Ba4 {[%emt 0:00:30]} 39. Kd2 {[%emt 0:00:30]} Bb3 {[%emt 0:00:00]} 40. Kc3 {[%emt 0:00:09]} Bxa2 {[%emt 0:00:15]} 41. Kb4 {[%emt 0:00:40]} Bb1 {[%emt 0:00:16]} 42. Kxa3 {[%emt 0:05:30]} Be4 {[%emt 0:00:30]} 43. Kb4 {[%emt 0:00:30]} Kf6 {[%emt 0:00:00]} 44. Kc5 {[%emt 0:00:30]} Ke6 {[%emt 0:00:00]} 45. Ba6 {[%emt 0:02:30]} Kd7 {[%emt 0:02:30]} 46. Bb7 {[%emt 0:03:30]} Ke6 {[%emt 0:00:30]} 47. Bc6 {[%emt 0:00:00]} Bf3 {[%emt 0:00:30]} 48. Be8 {[%emt 0:00:00]} Bh5 {[%emt 0:00:30]} 49. Ba4 {[%emt 0:06:15]} Be2 {[%emt 0:00:30]} 50. Kc6 {[%emt 0:02:03]} Bg4 {[%emt 0:01:30]} 51. Kc7 {[%emt 0:00:40]} Ke7 {[%emt 0:00:00]} 52. Bd7 {[%emt 0:00:15]} Bf3 {[%emt 0:01:00]} 53. Bc8 {[%emt 0:00:21]} Bh5 {[%emt 0:01:30]} 54. Kc6 {[%emt 0:01:20]} Bf3 {[%emt 0:00:30]} 55. Kc5 {[%emt 0:00:00]} Be4 {[%emt 0:00:30]} 56. Ba6 {[%emt 0:02:48]} Bf3 {[%emt 0:01:30]} 57. Bb7 {[%emt 0:00:46]} Ke6 {[%emt 0:00:30]} 58. Bc6 {[%emt 0:00:00]} Be4 {[%emt 0:02:30]} 59. Be8 {[%emt 0:00:00]} g5 {[%emt 0:00:00]} 60. Bc6 {[%emt 0:02:48]} Bf3 {[%emt 0:00:00]} 61. Bb7 {[%emt 0:00:29]} Be4 {[%emt 0:02:30]} 62. Bc8+ {[%emt 0:00:39]} Ke7 {[%emt 0:00:30]} 63. Kc6 {[%emt 0:00:20]} 1-0

[Event "World Junior U20 Girls 2018"]
[Site "Gebze"]
[Date "2018.09.10"]
[Round "6"]
[White "Varshini, V."]
[Black "Gomez Barrera, Javiera Belen"]
[Result "1-0"]
[ECO "C77"]
[WhiteElo "2173"]
[BlackElo "2035"]
[Annotator "NA"]
[PlyCount "77"]
[EventDate "2018.09.05"]
[EventType "swiss"]
[EventCountry "TUR"]
[SourceTitle "playchess.com"]
[Source "ChessBase"]
[SourceQuality "1"]
[TimeControl "40/5400+30:1800+30"]

1. e4 {[%emt 0:00:30]} e5 {[%emt 0:00:30]} 2. Nf3 {[%emt 0:00:00]} Nc6 {[%emt 0:00:00]} 3. Bb5 {[%emt 0:00:00]} a6 {[%emt 0:00:00]} 4. Ba4 {[%emt 0:00:30]} Nf6 {[%emt 0:00:30]} 5. Qe2 {[%emt 0:00:30] LiveBook: 1725 Games} Bd6 {[%emt 0:00:30]} 6. c3 {[%emt 0:00:30]} O-O {[%emt 0:00:30]} 7. O-O {[%emt 0:00:30]} Re8 {[%emt 0:00:00]} 8. d3 {[%emt 0:06:30]} h6 {[%emt 0:01:00] C77: Ruy Lopez: 3...a6 4 Ba4 Nf6, unusual lines} 9. Rd1 {[%emt 0:01:30]} Bf8 {[%emt 0:00:30]} 10. Nbd2 {[%emt 0:00:30]} b5 {[%emt 0:01:30]} 11. Bc2 {[%emt 0:00:30]} d5 {[%emt 0:00:30]} 12. Nf1 {[%emt 0:00:30]} d4 {[%emt 0:00:30]} 13. Ng3 $146 {[%emt 0:01:30]} ({Predecessor:} 13. h3 Bc5 14. Ng3 Qd6 15. Nh4 Ne7 16. Qf3 {0-1 (29) Matikozian,A (2494)-Gareyev,T (2599) Las Vegas 2010}) 13... a5 {[%emt 0:00:30]} 14. a4 {[%emt 0:07:30]} b4 {[%emt 0:00:30]} 15. cxb4 {[%emt 0:12:30]} axb4 {[%emt 0:32:30]} 16. Nd2 {[%emt 0:06:30]} Na5 {[%emt 0:03:30]} 17. Rf1 {[%emt 0:19:30]} Be6 {[%emt 0:05:30]} 18. Qd1 {[%emt 0:04:30]} Nd7 {[%emt 0:05:30]} 19. Bb3 {[%emt 0:10:30]} Nc5 {[%emt 0:13:30]} 20. Bxe6 {[%emt 0:03:30]} Rxe6 {[%emt 0:00:00]} 21. Nc4 $17 {[%emt 0:03:41]} Nab3 {[%emt 0:10:00]} 22. Rb1 {[%emt 0:00:10]} Nxc1 {[%emt 0:06:47]} 23. Rxc1 {[%emt 0:00:05]} Nxa4 {[%emt 0:00:23]} 24. f4 {[%emt 0:00:49]} exf4 {[%emt 0:02:01]} 25. Rxf4 {[%emt 0:00:05]} Be7 {[%emt 0:06:25]} 26. Rg4 {[%emt 0:06:14]} Bg5 {[%emt 0:02:48]} 27. Nf5 {[%emt 0:04:14]} g6 {[%emt 0:04:25]} 28. h4 {[%emt 0:00:29]} Bxc1 {[%emt 0:01:20]} 29. Qxc1 {[%emt 0:00:05]} Qf8 {[%emt 0:00:08]} 30. Nxh6+ {[%emt 0:01:17]} Kh7 {[%emt 0:00:38]} 31. Qf4 {[%emt 0:01:48]} f6 {[%emt 0:02:29]} 32. h5 {[%emt 0:04:17]} Qxh6 {[%emt 0:00:35]} 33. hxg6+ {[%emt 0:00:06]} Qxg6 {[%emt 0:00:28]} 34. Rxg6 {[%emt 0:01:08]} Kxg6 {[%emt 0:00:01]} 35. Qf5+ {[%emt 0:00:23]} Kf7 {[%emt 0:00:30]} 36. Qh7+ {[%emt 0:00:00]} Ke8 {[%emt 0:00:16]} 37. Qg8+ {[%emt 0:00:08]} Kd7 {[%emt 0:00:00]} 38. Qxa8 {[%emt 0:00:00]} Nc5 {[%emt 0:00:29]} 39. Qd5+ {[%emt 0:00:00]} 1-0

[Event "World Junior U20 Girls 2018"]
[Site "Gebze"]
[Date "2018.09.10"]
[Round "6"]
[White "Du, Yuxin"]
[Black "Stanciu, Ioana-Georgiana"]
[Result "1/2-1/2"]
[ECO "B31"]
[WhiteElo "2146"]
[BlackElo "2000"]
[Annotator "NA"]
[PlyCount "112"]
[EventDate "2018.09.05"]
[EventType "swiss"]
[EventCountry "TUR"]
[SourceTitle "playchess.com"]
[Source "ChessBase"]
[SourceQuality "1"]
[TimeControl "40/5400+30:1800+30"]

1. e4 {[%emt 0:00:30]} c5 {[%emt 0:00:30]} 2. Nf3 {[%emt 0:00:30]} Nc6 {[%emt 0:00:00]} 3. Bb5 {[%emt 0:00:30]} g6 {[%emt 0:00:00]} 4. Bxc6 {[%emt 0:00:30]} dxc6 {[%emt 0:00:30]} 5. O-O {[%emt 0:00:00]} Bg7 {[%emt 0:00:00]} 6. h3 {[%emt 0:00:00]} e5 {[%emt 0:01:00]} 7. d3 {[%emt 0:00:30]} Qd6 {[%emt 0:00:30] B31: Sicilian: 2...Nc6 3 Bb5 g6} (7... Qe7 8. Nbd2 Be6 9. a3 g5 10. Nc4 O-O-O 11. Bxg5 f6 12. Bd2 Nh6 13. b3 Rhg8 14. Kh1 Bf8 15. Bxh6 Bxh6 {½-½ (57) Howell,D (2655)-Lupulescu,C (2609) Novi Sad 2016}) 8. Nbd2 {[%emt 0:05:30]} Be6 {[%emt 0:05:30]} 9. Ng5 $146 {[%emt 0:02:30]} ({Predecessor:} 9. b3 Nf6 10. Bb2 Nh5 11. Nc4 Bxc4 12. bxc4 O-O 13. a4 b6 14. Re1 {½-½ (14) Sevostianov,P (2305)-Grekh,A (2373) Horodok 2013}) 9... Nf6 {[%emt 0:09:30]} 10. Qe2 {[%emt 0:57:30]} O-O {[%emt 0:02:30]} 11. Nxe6 {[%emt 0:05:30]} Qxe6 {[%emt 0:01:30]} 12. Nc4 {[%emt 0:03:19]} Nh5 {[%emt 0:06:30]} 13. Qg4 {[%emt 0:02:26]} Qe7 {[%emt 0:03:30]} 14. Bg5 {[%emt 0:03:33]} Qc7 {[%emt 0:02:30]} 15. g3 {[%emt 0:03:06]} Rae8 {[%emt 0:08:30]} 16. Be3 {[%emt 0:04:33]} b6 {[%emt 0:00:30]} 17. Qd1 {[%emt 0:02:11]} Qe7 {[%emt 0:03:30]} 18. Kh2 {[%emt 0:01:14]} Nf6 {[%emt 0:01:30]} 19. f4 {[%emt 0:01:14]} exf4 {[%emt 0:12:30]} 20. Bxf4 {[%emt 0:00:06]} Rd8 {[%emt 0:00:30]} 21. Qf3 {[%emt 0:04:16]} h6 {[%emt 0:00:30]} 22. Be5 {[%emt 0:00:53]} Ng4+ {[%emt 0:05:30]} 23. hxg4 {[%emt 0:00:30]} Bxe5 {[%emt 0:00:00]} 24. Nxe5 {[%emt 0:00:05]} Qxe5 {[%emt 0:00:00]} 25. Qf6 {[%emt 0:00:00]} Qxf6 {[%emt 0:11:30]} 26. Rxf6 {[%emt 0:00:17]} c4 {[%emt 0:00:00]} 27. Rd1 {[%emt 0:00:31]} c5 {[%emt 0:02:00]} 28. b3 {[%emt 0:01:05]} cxd3 {[%emt 0:00:30]} 29. Rxd3 {[%emt 0:00:46]} Rxd3 {[%emt 0:00:30]} 30. cxd3 {[%emt 0:00:04]} Rd8 {[%emt 0:00:00]} 31. Rf3 {[%emt 0:00:08]} Kf8 {[%emt 0:04:52]} 32. Kg2 {[%emt 0:00:57]} Ke7 {[%emt 0:00:16]} 33. Kf2 {[%emt 0:00:06]} Rd6 {[%emt 0:00:59]} 34. Ke2 {[%emt 0:01:25]} Rf6 {[%emt 0:04:42]} 35. Re3 {[%emt 0:00:05]} Re6 {[%emt 0:00:47]} 36. Kd2 {[%emt 0:01:02]} Rf6 {[%emt 0:02:58]} 37. Ke2 {[%emt 0:00:29]} Re6 {[%emt 0:00:34]} 38. Kd2 {[%emt 0:00:21]} Re5 {[%emt 0:00:03]} 39. Rf3 {[%emt 0:00:02]} Rg5 {[%emt 0:00:45]} 40. Rf4 {[%emt 0:00:00]} h5 {[%emt 0:03:05]} 41. gxh5 {[%emt 0:01:16]} Rxh5 {[%emt 0:01:59]} 42. Kc3 {[%emt 0:01:30]} Rh2 {[%emt 0:00:30]} 43. a3 {[%emt 0:01:30]} Ra2 {[%emt 0:01:30]} 44. a4 {[%emt 0:00:30]} Ke6 {[%emt 0:01:30]} 45. Rf3 {[%emt 0:02:30]} Re2 {[%emt 0:06:30]} 46. b4 {[%emt 0:07:30]} cxb4+ {[%emt 0:01:30]} 47. Kxb4 {[%emt 0:00:30]} Rb2+ {[%emt 0:00:00]} 48. Kc3 {[%emt 0:01:14]} Rb1 {[%emt 0:05:00]} 49. d4 {[%emt 0:04:06]} Ra1 {[%emt 0:02:30]} 50. Kb3 $11 {[%emt 0:01:39]} Re1 {[%emt 0:03:45]} 51. e5 {[%emt 0:00:59]} Rb1+ {[%emt 0:08:25]} 52. Kc4 {[%emt 0:02:23]} Rc1+ {[%emt 0:00:21]} 53. Kb5 {[%emt 0:01:41]} Rc7 {[%emt 0:08:29]} 54. Rf6+ {[%emt 0:06:42]} Kd5 {[%emt 0:00:02]} 55. Rd6+ {[%emt 0:00:22]} Ke4 {[%emt 0:00:02]} 56. e6 {[%emt 0:00:39]} fxe6 {[%emt 0:01:08]} 1/2-1/2

[Event "World Junior U20 Girls 2018"]
[Site "Gebze"]
[Date "2018.09.10"]
[Round "6"]
[White "Ivana Maria, Furtado"]
[Black "Nomin-Erdene, Davaademberel"]
[Result "1/2-1/2"]
[ECO "C22"]
[WhiteElo "2144"]
[BlackElo "2377"]
[Annotator "NA"]
[PlyCount "60"]
[EventDate "2018.09.05"]
[EventType "swiss"]
[EventCountry "TUR"]
[SourceTitle "playchess.com"]
[Source "ChessBase"]
[SourceQuality "1"]
[TimeControl "40/5400+30:1800+30"]

1. e4 {[%emt 0:00:30]} e5 {[%emt 0:02:30]} 2. d4 {[%emt 0:00:30]} exd4 {[%emt 0:00:00]} 3. Qxd4 {[%emt 0:00:00]} Nc6 {[%emt 0:01:00]} 4. Qe3 {[%emt 0:00:00]} Nf6 {[%emt 0:01:30]} 5. Bd2 {[%emt 0:00:00]} g6 {[%emt 0:00:00]} 6. Nc3 {[%emt 0:05:00]} Bg7 {[%emt 0:00:00]} 7. O-O-O {[%emt 0:11:30] C22: Centre Game} O-O {[%emt 0:00:00]} 8. Qg5 {[%emt 0:10:30]} (8. Qe1 Re8 9. f3 d6 10. Kb1 a6 11. Nge2 b5 12. Nf4 Ne5 13. h4 c6 14. h5 b4 {1-0 (38) Nepomniachtchi,I (2751)-Karjakin,S (2783) chess.com INT 2017}) 8... h6 $146 {[%emt 0:20:00]} ({Predecessor:} 8... Re8 9. f3 h6 10. Qh4 d6 11. Nh3 Be6 12. Nf4 Bd7 13. Nfd5 g5 14. Qg3 a5 {0-1 (43) Stjazhkina,O (2243)-Kovanova,B (2371) Belgrade 2013}) 9. Qh4 {[%emt 0:03:30]} g5 {[%emt 0:01:30]} 10. Qg3 {[%emt 0:01:30]} d6 {[%emt 0:00:30]} 11. Be2 {[%emt 0:06:30]} Nd4 {[%emt 0:15:00]} 12. f4 {[%emt 0:08:30]} g4 {[%emt 0:16:30]} 13. f5 {[%emt 0:05:30]} Nxe2+ {[%emt 0:03:30]} 14. Ngxe2 {[%emt 0:00:30]} Qe8 {[%emt 0:00:00]} 15. Qf4 {[%emt 0:12:30]} Qe5 {[%emt 0:10:00]} 16. Qxe5 {[%emt 0:00:30]} dxe5 {[%emt 0:00:30]} 17. h3 {[%emt 0:00:30]} g3 {[%emt 0:11:20]} 18. Nxg3 {[%emt 0:01:30]} Bd7 {[%emt 0:00:05]} 19. Be3 {[%emt 0:08:30]} Bc6 {[%emt 0:01:08]} 20. Rd3 {[%emt 0:02:30]} Rfe8 {[%emt 0:04:07]} 21. Kd2 {[%emt 0:00:39]} Bf8 {[%emt 0:01:04]} 22. a3 {[%emt 0:01:17]} Kh7 {[%emt 0:01:10]} 23. Ke2 {[%emt 0:01:12]} b5 {[%emt 0:05:15]} 24. b4 {[%emt 0:02:36]} a5 {[%emt 0:00:50]} 25. Rb1 {[%emt 0:00:10]} axb4 {[%emt 0:03:30]} 26. axb4 {[%emt 0:00:30]} Ra6 {[%emt 0:00:00]} 27. Kf3 {[%emt 0:06:39]} Rea8 {[%emt 0:00:03]} 28. Nce2 {[%emt 0:01:52]} Ra4 {[%emt 0:01:07]} 29. Bd2 {[%emt 0:01:49]} Be7 {[%emt 0:02:04]} 30. Rbb3 $11 {[%emt 0:03:52]} R4a6 {[%emt 0:00:28]} 1/2-1/2